bitfinex/quotes_SOLUSD_20250301
["timestamp","ask_amount","ask_price","bid_price","bid_amount"]
[1740858252364,0.063,141.19,141.14,79.4351]
[1740858252563,0.063,141.19,141.14,72.35]
[1740858253885,0.063,141.19,141.14,79.435]
[1740858258185,0.063,141.19,141.15,7.5576]
[1740858260197,0.063,141.19,141.16,7.0841]
[1740858261685,0.063,141.19,141.16,79.4341]
[1740858266402,0.063,141.19,141.16,215.2341]
[1740858270602,20.0,141.22,141.16,215.2341]
[1740858271221,20.0,141.23,141.16,215.2341]
[1740858271715,20.0,141.22,141.16,215.2341]
[1740858272510,0.063,141.19,141.16,215.2341]
[1740858272703,0.063,141.19,141.16,208.15]
[1740858273703,0.063,141.19,141.16,79.434]
[1740858277007,0.063,141.19,141.16,72.35]
[1740858292720,20.0,141.16,141.13,0.03]
[1740858294315,27.0844,141.16,141.13,0.03]
[1740858296721,20.0,141.16,141.13,0.03]
[1740858298415,7.0833,141.18,141.13,0.03]
[1740858300325,7.1457,141.19,141.13,72.38]
[1740858300626,7.1457,141.19,141.14,6.1841]
[1740858302326,0.063,141.19,141.14,13.2687]
[1740858303223,20.0,141.18,141.14,13.2687]
[1740858304530,0.063,141.19,141.15,1.6505]
[1740858305521,0.063,141.19,141.15,81.0848]
[1740858309306,0.063,141.19,141.15,216.8848]
[1740858309834,0.063,141.19,141.15,209.8005]
[1740858315332,0.063,141.19,141.15,74.0005]
[1740858318236,0.063,141.19,141.15,81.0851]
[1740858319907,0.063,141.19,141.15,216.8851]
[1740858320340,0.063,141.19,141.15,234.5967]
[1740858320831,0.063,141.19,141.15,216.8851]
[1740858321718,0.063,141.19,141.16,8.1077]
[1740858321929,0.063,141.19,141.17,7.0836]
[1740858325039,0.063,141.19,141.16,216.2577]
[1740858326440,0.063,141.19,141.16,223.3417]
[1740858330343,0.063,141.19,141.16,216.2577]
[1740858330518,20.0,141.18,141.13,72.38]
[1740858331945,20.0,141.18,141.13,79.4656]
[1740858332838,27.0834,141.18,141.13,79.4656]
[1740858333240,27.0834,141.18,141.13,72.38]
[1740858333437,27.0834,141.18,141.13,79.4656]
[1740858335837,0.063,141.19,141.13,79.4656]
[1740858336040,0.063,141.19,141.13,215.2656]
[1740858337263,0.063,141.19,141.13,239.3197]
[1740858339769,0.063,141.19,141.14,18.64964886]
[1740858341749,0.063,141.19,141.13,214.52]
[1740858343972,7.1456,141.19,141.13,221.6055]
[1740858346650,20.0,141.16,141.13,72.38]
[1740858348757,7.0846,141.15,141.13,72.38]
[1740858351072,20.0,141.16,141.13,72.38]
[1740858351284,7.0831,141.18,141.13,72.38]
[1740858352382,24.7909,141.18,141.13,72.38]
[1740858356656,7.0831,141.18,141.13,72.38]
[1740858358064,20.0,141.17,141.13,72.38]
[1740858358264,20.0,141.16,141.13,72.38]
[1740858360290,20.0,141.17,141.13,72.38]
[1740858361863,20.0,141.15,141.13,0.03]
[1740858362591,7.0851,141.14,141.13,0.03]
[1740858362990,20.0,141.15,141.13,0.03]
[1740858363289,7.0844,141.16,141.13,0.03]
[1740858364165,20.0,141.15,141.13,0.03]
[1740858365900,7.0851,141.14,141.13,0.03]
[1740858369313,25.73474886,141.14,141.13,0.03]
[1740858370496,108.73474886,141.14,141.13,0.03]
[1740858373112,18.64964886,141.13,141.11,0.03]
[1740858374946,7.0861,141.12,141.11,0.03]
[1740858379231,108.73574886,141.12,141.11,0.0001]
[1740858381651,20.0,141.09,141.08,0.03]
[1740858381855,44.98964886,141.09,141.08,0.03]
[1740858382863,78.25324275,141.09,141.05,0.03]
[1740858383028,20.0,141.06,141.05,0.03]
[1740858383229,27.0891,141.06,141.05,0.03]
[1740858383437,45.73874886,141.06,141.05,0.03]
[1740858384665,20.0,141.02,141.01,0.03]
[1740858387471,27.0911,141.02,141.01,0.03]
[1740858390453,45.74074886,141.02,140.99,0.03]
[1740858390654,20.0,140.99,140.98,0.03]
[1740858392063,38.64964886,140.99,140.98,0.03]
[1740858392561,45.74234886,140.99,140.98,0.03]
[1740858397194,90.0918,141.01,140.98,0.03]
[1740858397369,20.0,140.99,140.98,0.03]
[1740858397574,89.34,141.04,140.98,1.6407]
[1740858397878,119.58,141.07,140.98,73.9907]
[1740858398057,202.58,141.07,140.98,73.9907]
[1740858398258,20.0,141.04,140.98,73.9907]
[1740858398468,20.0,141.04,140.99,18.64964886]
[1740858398682,7.0883,141.08,140.99,226.79964886]
[1740858399064,25.73674886,141.1,141.0,7.0921]
[1740858399267,20.0,141.07,141.01,7.7216]
[1740858399474,20.0,141.07,141.01,215.8716]
[1740858401465,20.0,141.07,141.02,7.0911]
[1740858401665,20.0,141.06,141.02,7.0911]
[1740858402779,20.063,141.07,141.02,7.0911]
[1740858402985,27.1518,141.07,141.02,7.0911]
[1740858403483,27.1518,141.07,141.01,222.9631]
[1740858404586,27.1518,141.07,141.01,215.8716]
[1740858404975,27.1518,141.07,141.01,222.9632]
[1740858405301,27.1518,141.07,141.01,215.8716]
[1740858405586,27.1518,141.07,141.01,222.9632]
[1740858407472,20.063,141.07,141.01,222.9632]
[1740858408186,0.063,141.07,141.02,1.6127]
[1740858409582,0.063,141.07,141.03,7.0906]
[1740858409781,20.063,141.07,141.02,1.6127]
[1740858410091,20.063,141.07,141.02,73.9627]
[1740858411693,7.0891,141.06,141.02,73.9627]
[1740858412187,24.812,141.06,141.02,1.6127]
[1740858412489,20.0,141.03,141.02,1.6127]
[1740858412691,20.0,141.03,140.99,72.38]
[1740858412692,20.0,141.02,140.99,72.38]
[1740858412872,20.0,141.02,140.99,0.03]
[1740858413878,7.0916,141.01,140.99,0.03]
[1740858424499,13.4298,141.05,140.99,72.38]
[1740858424684,0.063,141.07,140.99,72.38]
[1740858424885,7.0893,141.06,141.0,8.0488]
[1740858425089,0.063,141.07,141.01,7.0916]
[1740858425600,20.0,141.06,141.01,215.2416]
[1740858426703,20.0,141.06,141.01,208.15]
[1740858426889,27.0893,141.06,141.01,208.15]
[1740858427703,27.0893,141.06,141.01,215.2416]
[1740858427883,20.0,141.06,141.01,215.2416]
[1740858428782,0.063,141.07,141.02,10.0488]
[1740858429084,0.063,141.07,141.03,24.98964886]
[1740858429893,0.063,141.07,141.03,233.13964886]
[1740858430090,0.063,141.07,141.04,1.5078]
[1740858430505,0.063,141.07,141.05,25.73924886]
[1740858430700,0.063,141.13,141.06,25.06904886]
[1740858430907,0.063,141.13,141.07,20.15744886]
[1740858431089,0.063,141.13,141.09,20.64964886]
[1740858431288,0.063,141.13,141.1,7.9272]
[1740858432504,0.063,141.13,141.11,7.0866]
[1740858433806,0.063,141.13,141.11,215.2366]
[1740858433998,0.063,141.16,141.11,215.2366]
[1740858433999,0.063,141.16,141.12,20.64964886]
[1740858434189,0.063,141.19,141.16,18.64964886]
[1740858434504,0.063,141.19,141.16,228.79964886]
[1740858434906,0.063,141.19,141.16,226.79964886]
[1740858435104,0.063,141.19,141.16,228.79964886]
[1740858435908,0.063,141.19,141.16,226.79964886]
[1740858436792,0.063,141.19,141.16,233.88364886]
[1740858437913,0.063,141.19,141.16,235.88364886]
[1740858439419,0.063,141.22,141.19,18.64964886]
[1740858439712,0.063,141.22,141.19,226.79964886]
[1740858439924,0.063,141.22,141.2,1.5915]
[1740858440613,0.063,141.22,141.2,8.6736]
[1740858442917,0.063,141.22,141.2,216.8236]
[1740858446147,0.063,141.26,141.22,2.0]
[1740858446299,0.063,141.26,141.24,18.64964886]
[1740858447320,0.063,141.26,141.25,25.72924886]
[1740858447514,0.063,141.26,141.25,233.87924886]
[1740858448723,0.063,141.26,141.25,226.79964886]
[1740858449118,0.063,141.26,141.25,208.15]
[1740858450434,0.063,141.26,141.23,72.35]
[1740858452228,7.1421,141.26,141.23,72.35]
[1740858452422,7.1421,141.26,141.21,72.35]
[1740858452622,20.0,141.23,141.21,72.35]
[1740858454838,7.0811,141.22,141.18,208.15]
[1740858455018,24.7839,141.22,141.18,72.35]
[1740858456344,7.0811,141.22,141.18,72.35]
[1740858457846,24.7839,141.22,141.18,72.35]
[1740858458226,7.0811,141.22,141.18,72.35]
[1740858461827,7.0811,141.22,141.18,72.38]
[1740858462645,7.0811,141.22,141.18,0.03]
[1740858462646,20.0,141.19,141.18,0.03]
[1740858464553,27.0826,141.19,141.18,0.03]
[1740858468075,20.0,141.19,141.18,0.03]
[1740858468454,7.0823,141.2,141.18,0.03]
[1740858468973,7.0811,141.22,141.18,0.03]
[1740858469269,7.0811,141.22,141.18,72.38]
[1740858470364,20.0,141.22,141.18,72.38]
[1740858470564,20.0,141.21,141.18,72.38]
[1740858472466,27.0818,141.21,141.18,72.38]
[1740858473373,20.0,141.22,141.18,79.463]
[1740858473569,7.0801,141.24,141.18,215.263]
[1740858473770,7.0798,141.25,141.19,1.66]
[1740858474074,7.1423,141.26,141.2,18.64964886]
[1740858474453,0.063,141.26,141.21,7.0816]
[1740858475466,0.063,141.26,141.2,226.79964886]
[1740858475676,0.063,141.26,141.2,233.88154886]
[1740858477675,0.063,141.26,141.2,72.35]
[1740858478374,20.0,141.24,141.2,72.35]
[1740858479977,7.0806,141.23,141.2,72.35]
[1740858481358,24.7822,141.23,141.18,72.38]
[1740858481769,20.0,141.23,141.18,72.38]
[1740858482079,20.0,141.22,141.18,72.38]
[1740858483175,7.0796,141.25,141.18,215.263]
[1740858483878,20.0,141.24,141.18,215.263]
[1740858485181,27.0804,141.24,141.18,215.263]
[1740858486281,0.063,141.25,141.18,215.263]
[1740858486466,0.063,141.25,141.19,18.64964886]
[1740858486668,0.063,141.25,141.21,24.92994886]
[1740858486981,0.063,141.25,141.21,233.07994886]
[1740858487977,0.063,141.25,141.22,7.0811]
[1740858488397,0.063,141.25,141.21,214.4303]
[1740858488557,0.063,141.25,141.21,208.15]
[1740858490167,0.063,141.25,141.21,215.2315]
[1740858492489,0.063,141.25,141.21,208.15]
[1740858493257,0.063,141.25,141.21,72.35]
[1740858493462,7.0801,141.24,141.21,72.35]
[1740858493670,20.0,141.22,141.21,72.35]
[1740858493870,24.7804,141.24,141.18,208.18]
[1740858494082,24.7804,141.24,141.18,72.38]
[1740858495689,17.7003,141.24,141.18,72.38]
[1740858497891,17.7633,141.24,141.18,72.38]
[1740858499689,20.0,141.21,141.18,72.38]
[1740858499890,20.0,141.21,141.18,0.03]
[1740858502293,7.0821,141.2,141.18,0.03]
[1740858503772,17.7027,141.23,141.18,0.03]
[1740858505096,24.7833,141.23,141.18,0.03]
[1740858506302,20.0,141.2,141.18,0.03]
[1740858508295,17.7027,141.23,141.18,0.03]
[1740858508493,7.0811,141.22,141.18,0.03]
[1740858509901,24.7833,141.23,141.18,0.03]
[1740858521812,24.8463,141.23,141.18,0.03]
[1740858524308,7.1436,141.23,141.18,0.03]
[1740858525314,7.1436,141.23,141.18,7.1131]
[1740858526919,7.1436,141.23,141.18,0.03]
[1740858527090,24.8452,141.23,141.18,0.03]
[1740858538631,7.1436,141.23,141.18,0.03]
[1740858539720,7.1436,141.23,141.19,6.2749]
[1740858539721,0.063,141.23,141.19,6.2749]
[1740858541007,0.063,141.23,141.19,85.7074]
[1740858541512,0.063,141.23,141.19,78.6249]
[1740858542218,20.063,141.23,141.19,78.6249]
[1740858543801,7.0811,141.22,141.19,78.6249]
[1740858544304,7.0811,141.22,141.19,72.35]
[1740858544814,31.1039,141.22,141.19,72.35]
[1740858545216,31.1039,141.22,141.19,72.38]
[1740858546814,31.1039,141.22,141.19,0.03]
[1740858548106,13.4011,141.22,141.19,0.03]
[1740858549225,6.32,141.22,141.19,0.03]
[1740858549537,13.4012,141.22,141.19,0.03]
[1740858549841,0.063,141.23,141.19,79.4622]
[1740858550127,0.063,141.23,141.2,6.2585]
[1740858550337,0.063,141.23,141.21,1.5877]
[1740858550514,0.063,141.23,141.21,73.9377]
[1740858550924,0.063,141.23,141.21,209.7377]
[1740858551432,0.063,141.23,141.22,18.64964886]
[1740858552040,0.063,141.23,141.22,25.73074886]
[1740858552227,0.063,141.24,141.22,233.88074886]
[1740858554621,0.063,141.24,141.22,208.15]
[1740858556324,0.063,141.24,141.22,72.35]
[1740858557240,20.063,141.24,141.21,1.5877]
[1740858557541,20.0,141.23,141.19,0.03]
[1740858558345,7.0811,141.22,141.19,0.03]
[1740858563254,24.7839,141.22,141.19,0.03]
[1740858564650,24.8434,141.24,141.19,0.03]
[1740858569352,20.0,141.21,141.19,0.03]
[1740858569558,68.00125674,141.24,141.19,0.03]
[1740858569722,20.0,141.21,141.19,0.03]
[1740858569930,20.0,141.19,141.16,0.03]
[1740858570962,7.0831,141.18,141.16,0.03]
[1740858574729,33.26359389,141.17,141.16,0.03]
[1740858575137,39.44652454,141.17,141.16,0.03]
[1740858576556,46.53012454,141.17,141.16,0.03]
[1740858576758,52.85012454,141.17,141.16,0.03]
[1740858578162,71.4997734,141.17,141.16,0.03]
[1740858582548,154.4997734,141.17,141.16,0.03]
[1740858584259,102.58653065,141.17,141.16,0.03]
[1740858584467,90.0836,141.17,141.16,0.03]
[1740858584653,0.063,141.19,141.16,0.03]
[1740858585146,0.063,141.19,141.17,1.5911]
[1740858586261,0.063,141.19,141.17,73.9411]
[1740858586655,0.063,141.19,141.17,209.7411]
[1740858587246,0.063,141.19,141.18,7.0831]
[1740858589571,0.063,141.19,141.17,216.8246]
[1740858594474,0.063,141.19,141.17,73.9411]
[1740858597381,0.063,141.19,141.16,0.03]
[1740858598587,7.1456,141.19,141.16,0.03]
[1740858598769,20.0,141.17,141.16,0.03]
[1740858600179,27.0836,141.17,141.16,0.03]
[1740858601681,33.26359389,141.14,141.09,72.35]
[1740858601867,33.26359389,141.14,141.07,6.2816]
[1740858602072,7.0856,141.13,141.07,6.2816]
[1740858603266,7.0856,141.13,141.07,13.37]
[1740858604072,7.0856,141.13,141.07,78.6316]
[1740858604275,7.0856,141.13,141.06,1.6448]
[1740858604276,53.26359389,141.11,141.06,1.6448]
[1740858605875,53.26359389,141.11,141.05,72.35]
[1740858606068,7.0881,141.08,141.05,72.35]
[1740858606387,7.0881,141.08,141.04,0.03]
[1740858606579,24.8085,141.08,141.04,0.03]
[1740858607888,31.1285,141.08,141.04,0.03]
[1740858608083,33.26359389,141.07,141.04,0.03]
[1740858609082,20.0,141.05,141.04,0.03]
[1740858609878,53.26359389,141.05,141.04,0.03]
[1740858610279,27.0896,141.05,141.04,0.03]
[1740858611178,7.0886,141.07,141.04,0.03]
[1740858612979,7.0883,141.08,141.04,1.5445]
[1740858613278,7.0883,141.08,141.04,73.8945]
[1740858613992,7.0876,141.09,141.04,73.8945]
[1740858615385,7.0866,141.11,141.05,6.1039]
[1740858615589,7.0866,141.11,141.05,78.4539]
[1740858616085,17.7154,141.12,141.05,78.4539]
[1740858616305,24.8015,141.12,141.05,85.5434]
[1740858618181,7.0861,141.12,141.05,221.3434]
[1740858618373,7.0858,141.13,141.05,239.0676]
[1740858619370,7.0846,141.15,141.05,239.0676]
[1740858619997,7.0846,141.15,141.06,18.64964886]
[1740858620205,7.0846,141.15,141.07,1.5338]
[1740858621190,7.0841,141.16,141.08,7.0881]
[1740858621392,7.0841,141.16,141.08,215.2381]
[1740858622295,17.7722,141.17,141.08,215.2381]
[1740858622600,31.11807768,141.17,141.08,215.2381]
[1740858625893,33.26359389,141.13,141.08,72.35]
[1740858626288,39.58359389,141.13,141.08,72.35]
[1740858627998,24.8015,141.12,141.08,72.35]
[1740858631299,33.26359389,141.11,141.05,78.4539]
[1740858632202,24.805,141.1,141.05,78.4539]
[1740858633293,33.26359389,141.09,141.05,72.35]
[1740858633912,33.26359389,141.09,141.04,1.6112]
[1740858634213,24.8085,141.08,141.04,1.6112]
[1740858635886,33.26359389,141.07,141.04,0.03]
[1740858636104,7.0891,141.06,141.04,0.03]
[1740858637415,7.0891,141.06,141.03,0.03]
[1740858637416,33.26359389,141.05,141.03,0.03]
[1740858637716,18.64964886,141.04,141.03,0.0001]
[1740858638294,25.73974886,141.04,141.03,0.0001]
[1740858639602,7.0901,141.04,141.03,0.0001]
[1740858643015,25.73974886,141.04,141.03,0.0001]
[1740858650016,29.73974886,141.04,141.03,0.0001]
[1740858650910,29.80274886,141.04,141.03,0.0001]
[1740858652222,71.91324275,141.02,141.01,0.0001]
[1740858652423,78.25324275,141.02,141.01,0.0001]
[1740858653905,85.34434275,141.02,141.01,0.0001]
[1740858654105,66.69469389,141.02,141.01,0.0001]
[1740858654321,46.69469389,141.02,141.01,0.0001]
[1740858661133,65.34434275,141.02,141.01,0.0001]
[1740858673631,18.64964886,141.01,141.0,0.0101]
[1740858676144,25.74124886,141.01,141.0,0.0101]
[1740858676621,83.0,141.02,141.0,0.0101]
[1740858676818,7.154,141.03,141.0,0.0101]
[1740858676819,20.0,141.01,141.0,0.0101]
[1740858678526,0.063,141.03,141.0,0.0101]
[1740858678944,0.063,141.03,141.01,1.6033]
[1740858679346,0.063,141.03,141.01,73.9533]
[1740858679650,7.0875,141.1,141.03,1.5314]
[1740858679850,7.0875,141.1,141.03,209.6814]
[1740858679851,20.0,141.07,141.03,209.6814]
[1740858680336,20.0,141.06,141.03,209.6814]
[1740858680537,7.0878,141.09,141.03,209.6814]
[1740858680844,20.0,141.08,141.03,216.772]
[1740858681047,7.0866,141.11,141.03,216.772]
[1740858681429,20.0,141.08,141.03,216.772]
[1740858681742,7.0866,141.11,141.03,216.772]
[1740858681941,7.0856,141.13,141.04,6.5708]
[1740858682130,20.0,141.1,141.04,214.7208]
[1740858682451,20.0,141.09,141.04,214.7208]
[1740858684251,27.088,141.09,141.04,214.7208]
[1740858686642,27.088,141.09,141.04,78.9208]
[1740858686846,27.151,141.09,141.04,78.9208]
[1740858689755,27.151,141.09,141.04,86.0109]
[1740858690446,27.151,141.09,141.04,78.9208]
[1740858704770,33.26359389,141.08,141.04,6.5708]
[1740858705160,20.0,141.05,141.04,6.5708]
[1740858707884,27.0896,141.05,141.04,6.5708]
[1740858710156,27.0896,141.05,141.03,1.5614]
[1740858711260,27.1526,141.05,141.03,1.5614]
[1740858713388,20.063,141.05,141.03,1.5614]
[1740858715290,27.1527,141.05,141.03,1.5614]
[1740858715473,27.1527,141.05,141.03,0.03]
[1740858717157,33.26359389,141.04,141.03,0.03]
[1740858719176,40.35369389,141.04,141.03,0.03]
[1740858720301,40.35369389,141.04,141.03,0.0001]
[1740858722000,7.0901,141.04,141.03,0.0001]
[1740858724603,0.063,141.05,141.03,0.0001]
[1740858725288,20.063,141.05,141.03,0.0001]
[1740858726402,0.063,141.05,141.03,0.0001]
[1740858726607,0.063,141.05,141.04,1.5419]
[1740858727805,0.063,141.05,141.04,216.782]
[1740858728201,0.063,141.05,141.04,235.43164886]
[1740858729210,0.063,141.09,141.05,13.3797]
[1740858729395,0.063,141.09,141.05,221.5297]
[1740858729998,0.063,141.09,141.06,18.64964886]
[1740858730704,0.063,141.09,141.05,214.4405]
[1740858731082,20.063,141.09,141.05,214.4405]
[1740858731301,7.0881,141.08,141.05,214.4405]
[1740858731812,27.1508,141.09,141.05,214.4405]
[1740858731986,0.063,141.09,141.05,85.73]
[1740858732393,0.063,141.09,141.05,221.53]
[1740858733913,0.063,141.09,141.06,18.64964886]
[1740858734113,0.063,141.09,141.07,1.6069]
[1740858734413,0.063,141.09,141.07,209.7569]
[1740858735313,0.063,141.16,141.11,29.8655]
[1740858735615,0.063,141.16,141.12,24.96964886]
[1740858736906,0.063,141.16,141.12,26.45699035]
[1740858737298,0.063,141.16,141.13,7.0856]
[1740858740219,0.063,141.16,141.13,215.2356]
[1740858741503,0.063,141.16,141.13,232.9497]
[1740858750622,0.063,141.16,141.13,215.2356]
[1740858765649,0.063,141.16,141.13,232.9497]
[1740858767845,0.063,141.16,141.13,72.35]
[1740858768147,20.063,141.16,141.13,72.35]
[1740858769742,20.0,141.15,141.11,72.35]
[1740858770033,7.0851,141.14,141.11,72.35]
[1740858780038,20.0,141.12,141.09,0.03]
[1740858780249,20.0,141.11,141.09,0.03]
[1740858780446,20.0,141.1,141.09,0.03]
[1740858781339,27.0871,141.1,141.09,0.03]
[1740858784849,20.0,141.1,141.09,0.03]
[1740858785460,27.0871,141.1,141.09,0.03]
[1740858789871,7.0869,141.11,141.09,0.03]
[1740858790167,83.0,141.15,141.09,0.03]
[1740858790466,83.0,141.15,141.09,72.38]
[1740858790467,7.0848,141.15,141.09,72.38]
[1740858791569,20.0,141.12,141.09,72.38]
[1740858793270,7.0866,141.11,141.09,72.38]
[1740858796161,0.063,141.13,141.09,72.38]
[1740858796466,7.0863,141.12,141.09,72.38]
[1740858796860,27.0863,141.12,141.09,72.38]
[1740858797057,20.0,141.12,141.09,72.38]
[1740858798773,27.0863,141.12,141.09,72.38]
[1740858802568,20.0,141.12,141.09,72.38]
[1740858807880,20.063,141.12,141.09,72.38]
[1740858809157,27.1492,141.12,141.09,72.38]
[1740858810083,20.063,141.12,141.09,72.38]
[1740858810608,0.063,141.12,141.09,80.9985]
[1740858810787,0.063,141.12,141.09,87.4569]
[1740858814218,0.063,141.12,141.09,223.2569]
[1740858816688,0.063,141.12,141.09,216.1695]
[1740858819314,0.063,141.12,141.09,209.7111]
[1740858819613,0.063,141.12,141.09,208.18]
[1740858820313,0.063,141.12,141.09,72.38]
[1740858822741,0.063,141.12,141.09,0.03]
[1740858823431,7.1491,141.12,141.09,0.03]
[1740858824216,0.063,141.12,141.09,0.03]
[1740858826223,0.063,141.12,141.09,72.38]
[1740858830123,0.063,141.12,141.09,79.4675]
[1740858830444,0.063,141.12,141.1,8.0686]
[1740858832550,0.063,141.12,141.11,7.0866]
[1740858833429,0.063,141.12,141.11,72.35]
[1740858837440,0.063,141.12,141.09,0.03]
[1740858852872,0.063,141.12,141.09,72.38]
[1740858854873,0.063,141.12,141.09,79.4676]
[1740858855074,0.063,141.12,141.09,72.38]
[1740858857254,0.063,141.12,141.09,79.4676]
[1740858859572,0.063,141.12,141.09,72.38]
[1740858861381,0.063,141.12,141.09,79.4674]
[1740858862788,0.063,141.12,141.09,215.2674]
[1740858864767,0.063,141.12,141.09,232.9865]
[1740858867285,0.063,141.12,141.09,215.2674]
[1740858867494,0.063,141.12,141.09,208.18]
[1740858867783,0.063,141.12,141.09,72.38]
[1740858868478,0.063,141.12,141.09,79.4676]
[1740858869984,0.063,141.12,141.09,72.38]
[1740858874188,0.063,141.12,141.09,79.4676]
[1740858879591,0.063,141.12,141.09,215.2676]
[1740858880498,0.063,141.12,141.09,208.18]
[1740858881876,0.063,141.12,141.09,215.2676]
[1740858883971,0.063,141.12,141.09,208.18]
[1740858884297,0.063,141.12,141.09,215.2675]
[1740858885493,0.063,141.12,141.09,79.4675]
[1740858886700,0.063,141.12,141.09,72.38]
[1740858886994,20.063,141.12,141.09,0.03]
[1740858888605,7.0866,141.11,141.09,0.03]
[1740858902196,40.35019389,141.11,141.09,0.03]
[1740858905506,40.35019389,141.11,141.03,72.3501]
[1740858905507,20.0,141.06,141.03,72.3501]
[1740858906010,20.0,141.04,141.03,0.0001]
[1740858907230,27.0901,141.04,141.03,0.0001]
[1740858910103,20.0,141.01,141.0,0.0101]
[1740858911221,27.0916,141.01,141.0,0.0101]
[1740858918139,79.00484275,141.01,141.0,0.0101]
[1740858926715,79.00484275,141.01,140.99,0.0201]
[1740858927036,18.64964886,141.0,140.99,0.0201]
[1740858927536,33.26359389,140.98,140.96,0.03]
[1740858927829,39.58359389,140.98,140.96,0.03]
[1740858928617,25.74334886,140.97,140.96,0.03]
[1740858931640,25.74334886,140.97,140.94,0.03]
[1740858932944,20.0,140.95,140.94,0.03]
[1740858935018,27.0947,140.95,140.94,0.03]
[1740858938846,20.0,140.95,140.94,0.03]
[1740858939037,83.0,140.99,140.94,1.5551]
[1740858939237,20.0,140.97,140.94,73.9051]
[1740858940550,20.0,140.97,140.95,7.0947]
[1740858941951,20.0,140.97,140.94,81.0001]
[1740858942329,33.26359389,141.0,140.95,6.6471]
[1740858943248,40.35589389,141.0,140.95,6.6471]
[1740858944649,40.35589389,141.0,140.95,13.7417]
[1740858946449,6.32,141.01,140.95,13.7417]
[1740858946833,13.4118,141.01,140.95,13.7417]
[1740858947932,13.4118,141.01,140.95,86.0917]
[1740858949353,0.063,141.0,140.95,86.0917]
[1740858957351,0.063,141.0,140.95,78.9971]
[1740858958259,51.97624275,141.0,140.95,78.9971]
[1740858959841,7.0927,140.99,140.95,78.9971]
[1740858963567,7.1553,141.0,140.95,86.0915]
[1740858965665,0.063,141.0,140.95,86.0915]
[1740858968853,0.063,141.0,140.95,221.8915]
[1740858969054,0.063,141.0,140.96,1.6545]
[1740858970942,0.063,141.0,140.97,7.0937]
[1740858971161,0.063,141.0,140.97,79.4437]
[1740858973774,0.063,141.0,140.97,215.2437]
[1740858974066,0.063,141.0,140.99,1.6545]
[1740858975067,0.063,141.0,140.99,8.7472]
[1740858976659,0.063,141.0,140.99,1.6545]
[1740858977376,0.063,141.0,140.97,208.15]
[1740858977577,0.063,141.0,140.97,72.35]
[1740858977878,0.063,141.0,140.97,79.4435]
[1740858978076,0.063,141.0,140.97,208.15]
[1740858978267,20.063,141.0,140.97,72.35]